Cogmind - Beta 10.2 @@@ ROGUE MODE // 2022.01.16 @ 15:30:09 Player: Bensnap Result: Destroyed by D-53 Grenadier with Mini Grenade Launcher Performance ------------- Evolutions (0) 0 Regions Visited (2) 400 Robots Destroyed (15) 75 Value Destroyed (428) 428 Prototype IDs (0) 0 Alien Tech Used (0) 0 Bonus (0) 0 TOTAL SCORE: 903 Bonus ------- None Cogmind --------- Core Integrity 0/250 Matter 300/300 Energy 100/100 System Corruption 0% Temperature Cool (0) Movement Walking (150) Ox1 Location -10/Mines Parts ------- > --- POWER (1) -------- (None) > --- PROPULSION (2) --- Aluminum Leg > --- UTILITY (2) ------ Small Storage Unit Small Storage Unit > --- WEAPON (2) ------- Particle Gun > --- INVENTORY (8) ---- Light Nuclear Core Visual Processing Unit Sensor Array Signal Interpreter Seismic Analyzer Grenade Launcher Datajack Mining Laser Peak State ------------ > --- POWER ------------ Light Nuclear Core > --- PROPULSION ------- Aluminum Leg Aluminum Leg > --- UTILITY ---------- Small Storage Unit Small Storage Unit > --- WEAPON ----------- Small Laser Light Assault Rifle > --- INVENTORY -------- Light Nuclear Core Aluminum Leg Visual Processing Unit Sensor Array Signal Interpreter Seismic Analyzer Grenade Launcher Mining Laser [Rating: 10] Favorites ----------- Power Light Nuclear Core Engine Ion Engine Power Core Light Nuclear Core Propulsion Aluminum Leg Leg Aluminum Leg Utility Small Storage Unit Storage Small Storage Unit Weapon Assault Rifle Energy Gun Medium Laser Ballistic Gun Assault Rifle Launcher Grenade Launcher Build | -11 -10 -10 ------- Run | Scr Mat Min Slots Evolved . | . . . Power . | . . . Propulsion . | . . . Utility . | . . . Weapon . | . . . Parts Attached 24 | 6 11 7 Power 3 | 1 1 1 Engine 2 | 1 . 1 Core 1 | . 1 . Reactor . | . . . Propulsion 9 | 2 3 4 Treads . | . . . Leg 9 | 2 3 4 Wheel . | . . . Hover . | . . . Flight . | . . . Utility 2 | 1 1 . Device . | . . . Storage 2 | 1 1 . Processor . | . . . Hackware . | . . . Protection . | . . . Artifact . | . . . Weapon 10 | 2 6 2 Energy Gun 4 | 1 2 1 Energy Cannon . | . . . Ballistic Gun 5 | 1 3 1 Ballistic Cannon . | . . . Launcher 1 | . 1 . Special Weapon . | . . . Impact Weapon . | . . . Slashing Weapon . | . . . Piercing Weapon . | . . . Special Melee Weapon . | . . . Unidentified Prototypes . | . . . Parts Lost 11 | . 5 6 Power 2 | . . 2 Propulsion 5 | . 3 2 Utility . | . . . Weapon 4 | . 2 2 Highest Loss Streak 4 | . 4 3 Average Slot Usage (%) 96 | . 97 94 Engine 6 | . 4 8 Core 7 | . 9 4 Leg 27 | . 27 27 Storage 27 | . 27 28 Energy Gun 6 | . 9 2 Ballistic Gun 19 | . 17 22 Naked Turns . | . . . Heaviest Build 18 | 12 18 17 Greatest Support 20 | 20 20 20 Greatest Overweight (x) 1 | 1 1 1 Average Overweight (x) . | . . . Largest Inventory Capacity 8 | 6 8 8 Average Capacity 7 | 5 7 8 Most Carried 8 | 3 8 8 Average Carried 7 | 1 7 8 Final Capacity 8 | 6 8 8 Final Carried 8 | 3 8 8 Class Distribution -------------------- 93% | Mutant 6% | Scavenger-Mutant Dominant Class ---------------- Mutant | -10/Materials Mutant | -10/Mines Resources | -11 -10 -10 ----------- Run | Scr Mat Min Matter Collected 587 | 211 146 230 Remotely . | . . . Salvage Created 517 | 24 279 214 Parts 33 | 5 17 11 Haulers Intercepted . | . . . Recyclers Shooed . | . . . Parts Field Recycled . | . . . Retrieved Matter . | . . . Parts Self-Destructed . | . . . Prevented . | . . . Kills | -11 -10 -10 ------- Run | Scr Mat Min Combat Hostiles Destroyed 10 | . 5 5 Guns 10 | . 5 5 Classes Destroyed 5 | 1 3 1 Worker 1 | . 1 . Tunneler 2 | 2 . . Watcher 2 | . 2 . Swarmer 1 | . . 1 Grunt 9 | . 5 4 Best Kill Streak 3 | 2 3 2 Combat Bots Only 2 | . 2 2 Max Kills in Single Turn 1 | 1 1 1 Gunslinging . | . . . Exploded . | . . . Melee . | . . . Uniques/NPCs Destroyed . | . . . Combat | -11 -10 -10 -------- Run | Scr Mat Min Damage Taken 1501 | . 913 588 Core 268 | . 186 82 Absorbed by Shields . | . . . Core Remaining (%) 100 | 100 . . Volleys Fired 74 | 6 47 21 Largest 2 | 2 2 2 Hottest 70 | 70 70 40 Shots Fired 132 | 12 84 36 Gun 132 | 12 84 36 Cannon . | . . . Launcher . | . . . Special . | . . . Kinetic 92 | 6 50 36 Thermal 35 | 6 29 . Explosive . | . . . Electromagnetic 5 | . 5 . Robot Hit Streak 12 | 8 12 5 Robot Miss Streak 2 | 1 2 1 Penetration Max . | . . . Secondary Targets . | . . . Shots Hit Robots 96 | 9 63 24 Core Hits 34 | 3 19 12 Critical Hits . | . . . Critical Kills . | . . . Critical Parts Destroyed . | . . . Melee Attacks . | . . . Impact . | . . . Slashing . | . . . Piercing . | . . . Sneak Attacks . | . . . Combat Hostiles . | . . . Follow-up Attacks . | . . . Damage Inflicted 1040 | 99 654 287 Guns 1019 | 99 654 266 Cannons . | . . . Explosions . | . . . Melee . | . . . Ramming 21 | . . 21 Kinetic 675 | 24 385 266 Thermal 294 | 75 219 . Explosive . | . . . Electromagnetic 50 | . 50 . Impact . | . . . Slashing . | . . . Piercing . | . . . Highest Corruption . | . . . Average Corruption . | . . . Corruption Purged . | . . . Overload Shots . | . . . Overflow Damage . | . . . Projectiles . | . . . Explosions . | . . . Melee . | . . . Knockbacks . | . . . Impact . | . . . Kinetic . | . . . Secondary . | . . . Self-Inflicted Damage 7 | . . 7 Shots . | . . . Rammed 5 | . . 5 Targets Rammed 9 | . . 9 Kicked 4 | . . 4 Crushed . | . . . Highest Temperature 334 | 90 334 9 Average Temperature 94 | 37 112 5 Received Heat Transfer 657 | . 507 150 Effects 3 | . 3 . Interference 3 | . 3 . Siege Activations . | . . . Robots Corrupted . | . . . Combat Hostiles . | . . . Parts Fried . | . . . Impact Corruptions . | . . . Robots Melted . | . . . Combat Hostiles . | . . . Parts Melted 1 | . 1 . Heat Transferred 793 | 222 571 . Parts Sabotaged . | . . . Parts Stolen . | . . . Parts Stripped . | . . . Power Chain Reactions . | . . . Missiles Intercepted . | . . . Alert | -11 -10 -10 ------- Run | Scr Mat Min Peak Influence 183 | 10 183 154 Initial 24 | . 6 24 Average 73 | 2 81 75 Maximum Alert Level . | . . . Low Security (%) 100 | 100 100 100 Level 1 . | . . . Level 2 . | . . . Level 3 . | . . . Level 4 . | . . . Level 5 . | . . . High Security . | . . . Max Security . | . . . Squads Dispatched . | . . . Investigation . | . . . Extermination . | . . . Reinforcement . | . . . Assault . | . . . Garrison . | . . . Intercept . | . . . Construction Impeded . | . . . Haulers Reinforced . | . . . Stealth | -11 -10 -10 --------- Run | Scr Mat Min Distress Signals 1 | . 1 . Communications Jammed . | . . . Distress Signals . | . . . Times Spotted 25 | . 15 10 Peak Tracking Total 4 | . 4 3 Tactical Retreats 5 | . 4 1 Traps | -11 -10 -10 ------- Run | Scr Mat Min Traps Triggered . | . . . Indirectly . | . . . Trap Hack Attempts . | . . . Triggered . | . . . Disarmed . | . . . Reprogrammed . | . . . Reused . | . . . Traps Extracted . | . . . Installed . | . . . Triggered . | . . . Machines | -11 -10 -10 ---------- Run | Scr Mat Min Machines Disabled . | . . . Max in Single Turn . | . . . Machines Sabotaged . | . . . Garrisons Compromised . | . . . Overloaded Fab Kills . | . . . Fab Network Shutdowns . | . . . Hacking | -11 -10 -10 --------- Run | Scr Mat Min Machines Accessed 5 | . 5 . Terminals 4 | . 4 . Fabricators . | . . . Repair Stations . | . . . Recycling Units 1 | . 1 . Scanalyzers . | . . . Garrison Access . | . . . Total Hacks 17 | . 17 . Successful 6 | . 6 . Failed 11 | . 11 . Catastrophic 1 | . 1 . Database Lockouts . | . . . Manual 12 | . 12 . Terminals 15 | . 15 . Fabricators . | . . . Repair Stations . | . . . Recycling Units 2 | . 2 . Scanalyzers . | . . . Garrison Access . | . . . Terminal Hacks 5 | . 5 . Branch Access Points 1 | . 1 . Alert Level 1 | . 1 . Surveillance Status 1 | . 1 . Zone Layout 2 | . 2 . Fabricator Hacks . | . . . Repair Station Hacks . | . . . Recycling Unit Hacks 1 | . 1 . Report Inventory 1 | . 1 . Scanalyzer . | . . . Garrison Access Hacks . | . . . Unauthorized Hacks . | . . . Terminals . | . . . Fabricators . | . . . Repair Stations . | . . . Recycling Units . | . . . Scanalyzers . | . . . Garrison Access . | . . . Data Cores Recovered . | . . . Used . | . . . Hacking Detections 5 | . 5 . Full Trace Events . | . . . Feedback Events . | . . . Feedback Blocked . | . . . Robot Schematics Acquired . | . . . Robots Built . | . . . Matter . | . . . Time . | . . . Total Robot Build Rating . | . . . Part Schematics Acquired . | . . . Parts Built . | . . . Matter . | . . . Time . | . . . Total Part Build Rating . | . . . Parts Repaired . | . . . Time . | . . . Parts Recycled . | . . . Recycled Matter . | . . . Retrieved Matter . | . . . Retrieved Components . | . . . Parts Scanalyzed . | . . . Part Schematics Acquired . | . . . Parts Damaged . | . . . Bothacking | -11 -10 -10 ------------ Run | Scr Mat Min Used RIF Installer . | . . . Robots Hacked . | . . . Non-combat . | . . . Combat . | . . . Robot Hacks Applied . | . . . Relay Couplers Released . | . . . Robots Rewired . | . . . Allies Hacked . | . . . Hacks Repelled . | . . . Allies | -11 -10 -10 -------- Run | Scr Mat Min Total Allies . | . . . Largest Group . | . . . Highest-Rated Group . | . . . Highest-Rated Ally . | . . . Total Orders . | . . . Ally Attacks . | . . . Total Damage . | . . . Kills . | . . . Allies Corrupted . | . . . Allies Melted . | . . . Intel | -11 -10 -10 ------- Run | Scr Mat Min Robot Analysis Total . | . . . Derelict Logs Recovered 1 | . . 1 Drone Launches . | . . . Drone Recoveries . | . . . Exploration | -11 -10 -10 ------------- Run | Scr Mat Min Turns Passed 1111 | 79 568 464 Spaces Moved 659 | 44 320 295 Core 7 | 7 . . Treads . | . . . Legs 652 | 37 320 295 Wheels . | . . . Hover . | . . . Flight . | . . . Fastest Speed 50 | 50 120 120 Average Speed 120 | 115 120 121 Slowest Speed 150 | 120 150 150 Overloaded Moves . | . . . Propulsion Burnouts . | . . . Robots Hopped . | . . . Cave-ins Triggered . | . . . Exploration Rate (%) 33 | 3 53 45 Regions Visited 2 Branch Regions 1 Pre-discovered Areas . | . . . Known Exits Taken 1 | . 1 . Unknown Exits Taken 1 | 1 . . Scrap Searched 3 | . . 3 Spaces Dug . | . . . Terrain Destroyed . | . . . Melee . | . . . Projectile . | . . . AOE . | . . . Terrain Rammed . | . . . Walls Destroyed . | . . . Machines Disabled . | . . . Actions | -11 -10 -10 --------- Run | Scr Mat Min Total 845 | 58 422 365 Wait 62 | . 33 29 Move 657 | 43 319 295 Hop . | . . . Pick Up 10 | 3 7 . Fast Attach 18 | 6 8 4 Attach 1 | . 1 . Detach 1 | . 1 . Swap 5 | . 2 3 Drop 8 | . 4 4 Fire 74 | 6 47 21 Melee . | . . . Ram . | . . . Kick 9 | . . 9 Crush . | . . . Escape Stasis . | . . . Rewire . | . . . Trap . | . . . Miscellaneous . | . . . Route ------- -11/Scrapyard -10/Materials -10/Mines History --------- Turn | Location | Event 7 | -11/Scrapyard | Discovered new exit (range 15) 80 | -11/Scrapyard | Entered Materials 91 | -10/Materials | Identified exit to Mines 333 | -10/Materials | Build established: Mutant 453 | -10/Materials | Core integrity fell below 50% 497 | -10/Materials | Lost 4 parts (2n2w) 648 | -10/Materials | Entered Mines 687 | -10/Mines | Assembled infested the area 692 | -10/Mines | Assisted by a Guerilla fighting off Assembled 731 | -10/Mines | Core integrity fell below 20% 937 | -10/Mines | Learned Materials garrison access intel 1112 | -10/Mines | Destroyed by D-53 Grenadier with Mini Grenade Launcher Last Messages --------------- 01024_ K-01 Serf collects debris. 01026_ Acquired 34 matter. 01026_ K-01 Serf collects debris. 01029_ Dropped Assault Rifle. 01029_ Acquired Particle Gun. 01029_ K-01 Serf collects debris. 01034_ Dropped Aluminum Leg. 01042_ K-01 Serf collects debris. 01053_ Searching scrap... 01053_ Found 34 Matter. 01053_ Found 26 Matter. 01054_ Acquired 26 matter. 01054_ Acquired 4 matter. 01056_ K-01 Serf collects debris. 01101_ K-01 Serf destroyed. 01103_ Aluminum Leg destroyed. 01103_ Ion Engine destroyed. 01108_ The unstable cave ceiling collapses. 01108_ Lgt. Assault Rifle destroyed. 01110_ U-05 Engineer lays Concrete. Map ----- +----------------------------------------------------+ | ??????????????????????????????????? | | ??????????????????????????????????? | | ??????????????????????????????????? | | ??????????????????????????????????? | | ??????????????????????????????????? | | ??????????????????????????????????? | | ??????????????????????????????????? | | ??????????????????####????????????? | | ????????????????### ##???????????? | | ????????????##### #???????????? | | ???????????## #???????????? | | ???????????# ##???????????? | | ?????# ????# #### ##????????????? | | ?????# ????## #??# #?????????????? | | ?????# ###### #??# #?????????????? | | ?????# % #?## #?????????????? | | ?????## ## ###?# #?????????????? | | ??????# ## #???# ##?????????????? | | ??????# ##??# #??????????????? | | ?????## ##?# #??????????????? | | ?????# #?# #??????????????? | | ?????# #?# #??????????????? | | ?????# #### ##?????????????? | | ?????## ## #?????????????? | | ??????## #?????????????? | | ??????## @ ##?????????????? | | ????### ##??????????????? | | ???## ###????????????? | | ??## =% ######???????? | | ??# d #???????? | | ??# [!## du #???????? | | ??# %### #### #???????? | | ??# ### #????????????? | | ??# """ ##### #????????????? | | ??# """ ##?### ## ##????????????? | | ??# """ #???###?##?????????????? | | ??# #??????????????????????? | | ??# ##?????????????????????? | | ??# #?????????????????????? | | ??## #??????????????###????? | | ???# ##?????????????## ##??? | | ???# ###??????????????# ###? | | ???## ##????????????????# ## | | ????## #??????????????????# # | | ?????# #######????????????### # | | ?????# #??????????????## | | ?????# ################## | | ?????####### # | | ???????????# # ################ # | | ???????????#= # #??????????????# # | +----------------------------------------------------+ Best States ------------- Heat Dissipation 25 Energy Generation 14 Energy Capacity 250 Matter Stores 300 Matter Capacity 300 Sight Range 16 Terrain Scan Density 10 Evasion (%) 40 Item Schematics ----------------- None Robot Schematics ------------------ None Fabricated ------------ Nothing Alien Tech Used ----------------- None Achievements -------------- None Challenges ------------ None Game ------ Seed MiningLongswordWheel Manual? 0 Play Time 00:13:03 Cumulative 27.1 hours Start 2022.01.16 @ 15:16:41 End 2022.01.16 @ 15:30:09 Sessions 1 Manual Loads 0 Difficulty Rogue Special Mode None Game No. 46 Rogue 46 Adventurer 0 Explorer 0 Win Type - Total 0 Types 0/0/0/0/0/0/0/0/0 Lore% 28 Gallery% 31 Achievement% 30 Wizard Run 0 Options --------- ASCII 0 Keyboard 1 Movement Numpad Keybinds 0 Fullscreen 1 Font 18/SmallcapsGlow Map View 76x50 Tactical HUD 1 Map Filters NONE Filters NONE Steam 1 RUN: 2caed1e0-34e8-411b-adf5-39c0a9960202